bitfinex/quotes_SOLUSD_20250212
["timestamp","ask_amount","ask_price","bid_price","bid_amount"]
[1739359369630,82.2,197.49,197.48,0.063]
[1739359370629,92.09260933,197.49,197.48,0.063]
[1739359375693,92.09260933,197.49,197.35,6.9239]
[1739359375694,0.12549,197.48,197.39,9.89260933]
[1739359375898,9.89260933,197.44,197.38,49.0877862]
[1739359376295,1.5173,197.45,197.4,9.89260933]
[1739359376733,11.40990933,197.45,197.39,9.89260933]
[1739359378327,9.89260933,197.43,197.38,39.19517687]
[1739359379327,9.89260933,197.42,197.38,39.19517687]
[1739359379706,9.89260933,197.43,197.38,39.19517687]
[1739359379907,9.89260933,197.44,197.38,49.0877862]
[1739359381424,82.2,197.44,197.39,9.89260933]
[1739359381804,82.2,197.44,197.38,49.0877862]
[1739359383416,82.2,197.44,197.41,9.89260933]
[1739359387319,1.5173,197.45,197.41,9.89260933]
[1739359388124,1.5173,197.45,197.4,9.89260933]
[1739359388704,1.5173,197.45,197.39,9.89260933]
[1739359388904,11.40990933,197.45,197.39,9.89260933]
[1739359389106,9.89260933,197.43,197.38,39.19517687]
[1739359389317,9.89260933,197.42,197.38,39.19517687]
[1739359390133,9.89260933,197.43,197.38,39.19517687]
[1739359390332,1.5173,197.45,197.4,9.89260933]
[1739359391420,20.25098,197.49,197.38,39.19517687]
[1739359391421,29.89260933,197.48,197.42,9.89260933]
[1739359391621,102.2,197.48,197.43,9.89260933]
[1739359391827,102.2,197.48,197.38,39.19517687]
[1739359392027,82.2,197.52,197.47,9.89260933]
[1739359394042,82.2,197.52,197.48,9.89260933]
[1739359395326,11.40330933,197.55,197.48,9.89260933]
[1739359395523,11.40330933,197.55,197.49,9.89260933]
[1739359397128,1.5107,197.55,197.49,9.89260933]
[1739359397349,11.40330933,197.55,197.48,9.89260933]
[1739359397526,1.5107,197.55,197.49,9.89260933]
[1739359397843,1.5107,197.55,197.5,9.89260933]
[1739359399614,1.5107,197.55,197.51,9.89260933]
[1739359399815,82.48098,197.57,197.51,9.89260933]
[1739359400015,82.23,197.57,197.51,9.89260933]
[1739359400332,82.23,197.57,197.45,21.23764853]
[1739359400333,0.03,197.57,197.52,9.89260933]
[1739359401439,0.03,197.57,197.53,9.89260933]
[1739359402234,0.03,197.57,197.52,9.89260933]
[1739359402538,0.03,197.57,197.53,9.89260933]
[1739359403041,0.03,197.57,197.52,9.89260933]
[1739359404437,0.03,197.57,197.53,9.89260933]
[1739359407750,0.03,197.57,197.54,9.89260933]
[1739359409129,0.03,197.57,197.53,9.89260933]
[1739359409845,0.03,197.57,197.54,9.89260933]
[1739359410419,0.03,197.57,197.55,9.89260933]
[1739359410645,0.03,197.57,197.56,9.89260933]
[1739359424637,0.03,197.57,197.54,9.89260933]
[1739359425570,0.03,197.57,197.55,9.89260933]
[1739359425959,0.03,197.57,197.56,9.89260933]
[1739359437651,0.03,197.57,197.55,9.89260933]
[1739359438475,0.03,197.57,197.54,9.89260933]
[1739359442174,0.03,197.57,197.55,9.89260933]
[1739359447177,0.03,197.57,197.56,9.89260933]
[1739359448146,0.03,197.57,197.54,9.89260933]
[1739359448963,1.6304,197.57,197.53,9.89260933]
[1739359449164,1.6304,197.57,197.52,9.89260933]
[1739359449370,11.52300933,197.57,197.51,9.89260933]
[1739359450580,9.89260933,197.56,197.5,9.89260933]
[1739359451765,11.52300933,197.57,197.5,9.89260933]
[1739359452984,9.89260933,197.56,197.5,9.89260933]
[1739359453476,9.89260933,197.55,197.48,9.95560933]
[1739359453778,9.89260933,197.54,197.48,9.95560933]
[1739359454169,9.89260933,197.55,197.48,9.95560933]
[1739359454370,9.89260933,197.55,197.49,9.89260933]
[1739359456089,92.09260933,197.56,197.5,9.89260933]
[1739359458076,9.89260933,197.55,197.49,9.89260933]
[1739359458673,82.2,197.56,197.48,0.063]
[1739359458674,9.89260933,197.53,197.48,0.063]
[1739359459274,9.89260933,197.54,197.48,9.95560933]
[1739359460365,9.89260933,197.55,197.49,9.89260933]
[1739359460567,92.09260933,197.56,197.49,9.89260933]
[1739359461175,82.2,197.56,197.51,9.89260933]
[1739359461990,82.2,197.56,197.5,9.89260933]
[1739359462490,92.09260933,197.56,197.49,9.89260933]
[1739359465784,92.09260933,197.56,197.5,9.89260933]
[1739359465993,82.2,197.56,197.5,9.89260933]
[1739359466384,92.09260933,197.56,197.5,9.89260933]
[1739359466880,9.89260933,197.54,197.48,9.95560933]
[1739359467079,9.89260933,197.52,197.48,0.063]
[1739359467289,1.5246,197.51,197.48,0.063]
[1739359467890,9.89260933,197.49,197.48,0.063]
[1739359468091,10.14358933,197.49,197.48,0.063]
[1739359468290,10.14358933,197.49,197.41,8.00004608]
[1739359468291,1.5243,197.46,197.41,8.00004608]
[1739359468590,9.89260933,197.44,197.41,8.00004608]
[1739359469172,9.89260933,197.43,197.41,8.00004608]
[1739359469689,9.89260933,197.43,197.38,39.19517687]
[1739359471297,9.89260933,197.41,197.38,39.19517687]
[1739359471497,9.89260933,197.39,197.38,0.063]
[1739359472073,11.51070933,197.39,197.38,0.063]
[1739359472482,11.88717933,197.39,197.38,0.063]
[1739359472797,11.51070933,197.39,197.38,0.063]
[1739359474866,11.88717933,197.39,197.38,0.063]
[1739359478377,18.20507933,197.39,197.38,0.063]
[1739359483394,20.0,197.36,197.29,9.89260933]
[1739359483577,20.0,197.36,197.28,0.063]
[1739359483578,9.89260933,197.34,197.28,9.95560933]
[1739359485610,9.89260933,197.33,197.28,0.063]
[1739359485787,9.89260933,197.32,197.28,0.063]
[1739359486307,9.89260933,197.33,197.28,0.063]
[1739359486498,9.89260933,197.34,197.28,9.95560933]
[1739359487508,29.89260933,197.29,197.28,0.063]
[1739359487994,29.89260933,197.3,197.28,0.063]
[1739359488416,1.5225,197.31,197.28,0.063]
[1739359489696,11.41510933,197.31,197.28,0.063]
[1739359490721,1.5225,197.31,197.28,0.063]
[1739359492709,9.89260933,197.36,197.3,9.89260933]
[1739359492995,11.39980933,197.37,197.31,9.89260933]
[1739359493397,29.89260933,197.36,197.3,9.89260933]
[1739359494123,29.89260933,197.36,197.28,0.063]
[1739359494124,11.39980933,197.37,197.31,9.89260933]
[1739359494425,0.03,197.38,197.35,9.89260933]
[1739359497599,0.03,197.38,197.33,9.89260933]
[1739359497919,0.03,197.38,197.34,9.89260933]
[1739359500724,0.03,197.38,197.35,9.89260933]
[1739359501440,0.03,197.38,197.37,9.89260933]
[1739359507934,0.03,197.38,197.33,9.89260933]
[1739359508324,0.03,197.38,197.35,9.89260933]
[1739359508525,0.03,197.38,197.37,9.89260933]
[1739359512453,0.03,197.38,197.35,9.89260933]
[1739359512735,0.03,197.38,197.34,9.89260933]
[1739359513711,0.03,197.38,197.35,9.89260933]
[1739359515044,0.03,197.38,197.34,9.89260933]
[1739359515546,0.03,197.38,197.35,0.063]
[1739359520148,0.03,197.38,197.37,9.89260933]
[1739359521133,0.03,197.38,197.36,9.89260933]
[1739359521445,0.03,197.38,197.35,9.95560933]
[1739359523240,0.03,197.38,197.36,9.89260933]
[1739359523747,0.03,197.38,197.37,9.89260933]
[1739359524250,0.03,197.38,197.35,9.95560933]
[1739359524552,0.03,197.38,197.36,9.89260933]
[1739359525930,0.03,197.38,197.37,9.89260933]
[1739359530258,0.03,197.38,197.37,23.30445786]
[1739359530854,0.03,197.48,197.37,63.00038518]
[1739359531037,0.03,197.48,197.46,9.89260933]
[1739359532030,0.03,197.48,197.45,9.89260933]
[1739359532658,0.03,197.48,197.46,9.89260933]
[1739359533050,0.03,197.48,197.47,9.89260933]
[1739359539052,0.03,197.48,197.47,23.30445786]
[1739359540069,0.03,197.48,197.47,63.25136518]
[1739359540363,0.03,197.56,197.48,13.53733853]
[1739359540548,0.03,197.56,197.55,9.89260933]
[1739359541060,0.03,197.56,197.51,9.89260933]
[1739359541644,0.03,197.56,197.52,9.89260933]
[1739359543368,0.03,197.56,197.51,9.89260933]
[1739359544396,0.03,197.56,197.5,9.89260933]
[1739359544576,0.03,197.56,197.52,9.89260933]
[1739359544885,82.23,197.56,197.52,9.89260933]
[1739359545489,10.14358933,197.54,197.47,9.89260933]
[1739359545685,9.89260933,197.52,197.46,9.89260933]
[1739359546186,1.5767,197.51,197.46,9.89260933]
[1739359547765,10.14358933,197.5,197.43,9.89260933]
[1739359548095,9.89260933,197.48,197.42,9.89260933]
[1739359548272,10.14358933,197.49,197.43,9.89260933]
[1739359549792,9.89260933,197.49,197.43,9.89260933]
[1739359550011,21.70219,197.51,197.44,9.89260933]
[1739359550012,31.59479933,197.51,197.44,9.89260933]
[1739359550171,0.25098,197.5,197.44,9.89260933]
[1739359550779,10.14358933,197.5,197.44,9.89260933]
[1739359551319,9.89260933,197.49,197.43,9.89260933]
[1739359551475,9.89260933,197.49,197.42,9.89260933]
[1739359551766,9.89260933,197.49,197.43,9.89260933]
[1739359552177,9.89260933,197.49,197.46,0.063]
[1739359553404,10.14358933,197.5,197.46,0.063]
[1739359553909,92.34358933,197.5,197.46,0.063]
[1739359556170,92.34358933,197.5,197.46,0.063]
[1739359557990,82.45098,197.5,197.46,0.063]
[1739359559609,92.34358933,197.5,197.46,0.063]
[1739359561305,9.89260933,197.49,197.46,0.063]
[1739359561805,92.34358933,197.5,197.46,0.063]
[1739359562102,82.45098,197.5,197.46,0.063]
[1739359563278,92.34358933,197.5,197.46,0.063]
[1739359563902,0.25098,197.48,197.46,0.063]
[1739359564104,10.14358933,197.48,197.46,0.063]
[1739359565726,82.2,197.47,197.46,0.063]
[1739359565882,10.14358933,197.47,197.46,0.063]
[1739359566087,10.26907933,197.47,197.46,0.063]
[1739359566706,11.91907933,197.47,197.46,0.063]
[1739359567410,9.89260933,197.43,197.39,39.12291156]
[1739359567598,9.89260933,197.42,197.39,39.12291156]
[1739359568285,10.14358933,197.43,197.39,39.12291156]
[1739359568812,9.89260933,197.41,197.39,39.12291156]
[1739359568999,11.55840933,197.4,197.38,0.063]
[1739359569883,10.26907933,197.39,197.38,0.063]
[1739359570704,9.89260933,197.39,197.38,0.063]
[1739359570910,20.0,197.39,197.38,0.063]
[1739359571400,20.25098,197.39,197.38,0.063]
[1739359572699,20.37647,197.39,197.38,0.063]
[1739359574430,30.26907933,197.39,197.38,0.063]
[1739359575726,20.25098,197.39,197.38,0.063]
[1739359579424,30.14358933,197.39,197.38,0.063]
[1739359579834,20.25098,197.39,197.38,0.063]
[1739359582642,20.0,197.39,197.38,0.063]
[1739359582844,1.6658,197.4,197.38,0.063]
[1739359584059,29.89260933,197.42,197.38,0.063]
[1739359584219,20.0,197.42,197.38,0.063]
[1739359584543,29.89260933,197.41,197.38,0.063]
[1739359586254,20.0,197.41,197.38,0.063]
[1739359587241,9.89260933,197.42,197.38,0.063]
[1739359587435,82.32549,197.44,197.38,0.063]
[1739359587436,12.88667933,197.39,197.38,0.063]
[1739359587637,20.25098,197.36,197.35,0.063]
[1739359588631,0.25098,197.36,197.35,0.063]
[1739359589135,10.14358933,197.36,197.35,0.063]
[1739359589844,10.01809933,197.36,197.35,0.063]
[1739359593349,1.76779,197.32,197.28,0.063]
[1739359593556,9.89260933,197.29,197.28,0.063]
[1739359604159,9.89260933,197.3,197.28,0.063]
[1739359607160,9.89260933,197.31,197.28,0.063]
[1739359607861,92.09260933,197.32,197.28,0.063]
[1739359609666,82.2,197.32,197.28,0.063]
[1739359611275,92.09260933,197.32,197.28,0.063]
[1739359613637,82.2,197.32,197.28,0.063]
[1739359619463,82.2,197.32,197.28,9.95560933]
[1739359621572,82.2,197.32,197.31,9.89260933]
[1739359622849,0.03,197.35,197.31,9.89260933]
[1739359623053,0.03,197.35,197.33,9.89260933]
[1739359623247,0.03,197.35,197.32,9.89260933]
[1739359627381,0.03,197.35,197.31,9.95560933]
[1739359628662,14.03,197.35,197.31,9.95560933]
[1739359631877,14.03,197.35,197.34,9.89260933]
[1739359637052,14.03,197.35,197.33,9.89260933]
[1739359647555,0.03,197.35,197.33,9.89260933]
[1739359648982,0.03,197.35,197.33,9.95560933]
[1739359650765,0.03,197.35,197.34,9.89260933]
[1739359651275,0.03,197.35,197.33,9.95560933]
[1739359653788,0.03,197.35,197.34,10.01809933]
[1739359654295,0.03,197.35,197.33,0.063]
[1739359655096,0.03,197.35,197.33,9.95560933]
[1739359655584,0.03,197.35,197.33,0.063]
[1739359667485,0.03,197.35,197.34,10.01809933]
[1739359668602,0.03,197.35,197.34,23.55543786]
[1739359669521,93.65630933,197.5,197.35,1.0]
[1739359669695,0.03,197.5,197.45,9.89260933]
[1739359670012,1.5337,197.47,197.35,6.4351]
[1739359670215,20.03,197.46,197.31,0.063]
[1739359670390,20.03,197.46,197.33,13.72582853]
[1739359670587,20.03,197.46,197.35,13.66282853]
[1739359670900,0.03,197.46,197.37,0.25098]
[1739359671087,0.03,197.46,197.41,9.89260933]
[1739359671410,0.03,197.46,197.42,9.89260933]
[1739359672188,0.03,197.46,197.43,9.89260933]
[1739359672615,0.03,197.46,197.43,12.90759187]
[1739359672817,0.03,197.46,197.44,9.89260933]
[1739359672988,0.03,197.46,197.43,12.90759187]
[1739359674092,0.03,197.46,197.44,3.01498254]
[1739359675405,0.03,197.46,197.43,9.89260933]
[1739359675917,0.03,197.46,197.44,9.89260933]
[1739359676114,0.03,197.46,197.45,9.89260933]
[1739359676687,0.03,197.46,197.45,10.01809933]
[1739359678613,0.03,197.46,197.45,13.02200903]
[1739359680496,0.03,197.46,197.45,26.55934756]
[1739359682520,0.03,197.46,197.45,26.81032756]
[1739359682725,0.03,197.5,197.48,0.12549]
[1739359683022,0.03,197.5,197.49,63.12587518]
[1739359683824,0.03,197.51,197.5,13.91380853]
[1739359684122,0.03,197.51,197.5,63.37685518]
[1739359685417,0.03,197.51,197.5,49.46304665]
[1739359685611,0.03,197.51,197.5,66.11655683]
[1739359686505,0.03,197.51,197.5,52.5792183]
[1739359686712,0.03,197.51,197.5,49.58853665]
[1739359687027,0.03,197.51,197.5,10.01809933]
[1739359689031,0.03,197.51,197.5,49.58853665]
[1739359690107,0.03,197.51,197.5,10.01809933]
[1739359691133,0.03,197.51,197.5,49.58853665]
[1739359693332,0.03,197.51,197.5,9.89260933]
[1739359694613,0.03,197.51,197.5,49.58853665]
[1739359695714,0.03,197.51,197.5,63.12587518]
[1739359696631,0.03,197.51,197.5,63.37685518]
[1739359702742,0.03,197.51,197.5,23.80641786]
[1739359703712,0.03,197.51,197.5,63.37685518]
[1739359704443,0.03,197.51,197.49,9.89260933]
[1739359704646,93.66680933,197.5,197.46,0.063]
[1739359704810,20.0,197.47,197.46,0.063]
[1739359705010,9.89260933,197.46,197.35,8.00004608]
[1739359705213,92.09260933,197.49,197.36,13.91380853]
[1739359705411,20.0,197.47,197.36,13.91380853]
[1739359705642,20.0,197.47,197.44,9.89260933]
[1739359706323,11.46680933,197.5,197.43,9.89260933]
[1739359706324,29.89260933,197.49,197.43,9.89260933]
[1739359709045,9.89260933,197.47,197.41,9.89260933]
[1739359710856,92.09260933,197.46,197.4,9.89260933]
[1739359711152,82.2,197.45,197.4,9.89260933]
[1739359711321,92.09260933,197.45,197.39,9.89260933]
[1739359711518,82.2,197.45,197.4,9.89260933]
[1739359712549,82.2,197.45,197.42,9.89260933]
[1739359712927,82.2,197.45,197.41,9.89260933]
[1739359714055,82.2,197.45,197.41,0.12549]
[1739359714247,9.89260933,197.46,197.4,9.89260933]
[1739359714557,9.89260933,197.46,197.39,9.89260933]
[1739359715553,9.89260933,197.46,197.4,9.89260933]
[1739359716466,9.89260933,197.46,197.39,9.89260933]
[1739359716625,9.89260933,197.46,197.4,9.89260933]
[1739359716829,9.89260933,197.45,197.39,9.89260933]
[1739359718168,11.55560933,197.42,197.36,9.89260933]
[1739359718830,92.09260933,197.41,197.35,0.063]
[1739359720664,82.2,197.41,197.36,9.89260933]
[1739359721159,82.2,197.41,197.39,0.063]
[1739359724950,92.09260933,197.41,197.39,0.063]
[1739359727839,82.2,197.41,197.39,0.063]
[1739359731942,92.09260933,197.41,197.39,0.063]
[1739359734365,82.2,197.41,197.39,0.063]
[1739359738572,92.09260933,197.41,197.39,0.063]
[1739359738866,9.89260933,197.4,197.39,0.063]
[1739359739274,82.2,197.41,197.39,0.063]
[1739359740873,82.2,197.4,197.39,0.063]
[1739359745392,92.09260933,197.4,197.39,0.063]
[1739359747091,9.89260933,197.4,197.39,0.063]
[1739359756082,9.89260933,197.41,197.39,0.063]
[1739359768506,9.89260933,197.4,197.39,0.063]
[1739359769100,49.46304665,197.4,197.39,0.063]
[1739359772896,50.71996373,197.4,197.39,0.063]
[1739359775603,20.0,197.37,197.35,0.063]
[1739359775797,9.89260933,197.36,197.35,0.063]
[1739359778405,29.89260933,197.37,197.35,0.063]
[1739359778612,9.89260933,197.36,197.35,0.063]
[1739359783384,4.17978374,197.36,197.35,0.063]
[1739359797923,9.89260933,197.37,197.35,0.063]
[1739359798227,9.89260933,197.38,197.35,0.063]
[1739359798428,9.89260933,197.36,197.35,0.063]
[1739359799300,9.89260933,197.37,197.35,0.063]
[1739359804801,9.89260933,197.36,197.35,0.063]
[1739359805440,20.0,197.33,197.31,0.063]
[1739359805745,9.89260933,197.32,197.31,0.063]
[1739359807044,9.89260933,197.36,197.31,0.063]
[1739359807727,9.89260933,197.35,197.31,0.063]
[1739359807927,9.89260933,197.34,197.31,0.063]
[1739359808241,92.09260933,197.33,197.31,0.063]
[1739359808439,9.89260933,197.32,197.31,0.063]
[1739359812819,9.89260933,197.33,197.31,0.063]
[1739359813044,20.0,197.32,197.31,0.063]
[1739359814746,9.89260933,197.36,197.31,0.063]
[1739359814930,9.95560933,197.37,197.31,0.063]
[1739359815238,0.063,197.37,197.32,9.89260933]
[1739359815745,0.063,197.37,197.31,0.063]
[1739359816843,82.2,197.36,197.31,0.063]
[1739359817767,0.063,197.37,197.31,0.063]
[1739359817768,20.0,197.32,197.31,0.063]
[1739359819949,82.2,197.35,197.31,0.063]
[1739359821146,82.2,197.34,197.31,0.063]
[1739359822153,20.0,197.32,197.31,0.063]
[1739359822644,82.2,197.34,197.31,0.063]
[1739359827151,82.2,197.33,197.31,0.063]
[1739359833062,82.2,197.32,197.31,0.063]
[1739359839065,0.063,197.37,197.31,0.063]
[1739359839363,82.2,197.36,197.31,0.18849]
[1739359839570,82.2,197.36,197.31,13.60033853]
[1739359839873,3.66,197.35,197.31,13.60033853]
[1739359840158,82.2,197.36,197.31,13.60033853]
[1739359840361,0.063,197.37,197.32,13.78831853]
[1739359840571,0.063,197.37,197.36,13.78831853]
[1739359840769,0.063,197.37,197.36,13.91380853]
[1739359844143,0.063,197.37,197.36,13.78831853]
[1739359844668,0.063,197.37,197.36,13.91380853]
[1739359845768,0.063,197.37,197.36,0.12549]
[1739359846439,0.063,197.37,197.32,0.25098]
[1739359846440,0.063,197.37,197.32,0.12549]
[1739359846845,0.063,197.37,197.32,13.78831853]
[1739359847339,0.063,197.37,197.32,0.12549]
[1739359849748,82.2,197.36,197.32,0.15549]
[1739359852370,82.2,197.35,197.32,0.03]
[1739359852791,82.2,197.34,197.32,0.03]
[1739359853147,1.6508,197.33,197.32,0.03]
[1739359854068,20.0,197.29,197.28,0.063]
[1739359854274,20.0,197.31,197.28,0.063]
[1739359854652,21.0,197.31,197.28,0.063]
[1739359854865,1.0,197.31,197.28,0.063]
[1739359855648,21.0,197.31,197.28,0.063]
[1739359856782,20.0,197.3,197.28,0.063]
[1739359858662,34.53733853,197.29,197.28,0.063]
[1739359858860,35.53733853,197.29,197.28,0.063]
[1739359859260,2.12549,197.27,197.26,0.063]
[1739359859485,17.12693853,197.27,197.26,0.063]
[1739359860289,16.12693853,197.27,197.26,0.063]
[1739359860657,15.12693853,197.27,197.26,0.063]
[1739359860861,1.5896,197.27,197.26,0.063]
[1739359861969,1.71509,197.27,197.26,0.063]
[1739359862173,15.12693853,197.27,197.26,0.063]
[1739359862994,1.5896,197.27,197.26,0.063]
[1739359864461,21.5896,197.27,197.26,0.063]
[1739359864984,1.5416,197.33,197.26,0.063]
[1739359866361,21.5416,197.33,197.26,0.063]
[1739359866899,82.2,197.32,197.26,0.063]
[1739359868186,20.31048327,197.36,197.27,0.37647]
[1739359868187,102.51048327,197.36,197.27,0.37647]
[1739359869582,20.0,197.33,197.26,0.063]
[1739359870180,20.0,197.33,197.27,0.12549]
[1739359870992,102.51048327,197.36,197.27,0.12549]
[1739359871184,82.2,197.35,197.27,0.12549]
[1739359871895,82.2,197.35,197.27,13.66282853]
[1739359874399,0.063,197.33,197.27,13.66282853]
[1739359876987,0.063,197.33,197.28,7.3819]
[1739359877598,82.2,197.32,197.28,7.3819]
[1739359877782,82.2,197.32,197.29,0.12549]
[1739359880197,82.2,197.32,197.29,13.78831853]
[1739359880404,0.063,197.33,197.3,0.12549]
[1739359881695,0.063,197.33,197.29,13.53733853]
[1739359882999,0.063,197.33,197.29,0.12549]
[1739359886496,82.2,197.32,197.29,0.12549]
[1739359887605,82.2,197.31,197.29,0.12549]
[1739359887909,82.2,197.31,197.28,0.03]
[1739359892419,82.2,197.3,197.28,0.03]
[1739359894016,82.2,197.29,197.28,0.03]
[1739359894196,1.6619,197.3,197.28,0.03]
[1739359898114,1.7249,197.3,197.28,0.03]
[1739359903286,2.7249,197.3,197.26,0.063]
[1739359903605,20.0,197.26,197.23,0.063]
[1739359903802,82.2,197.25,197.23,0.063]
[1739359907322,82.2,197.24,197.23,0.063]
[1739359913229,0.063,197.26,197.23,0.063]
[1739359928347,0.063,197.26,197.24,0.37647]
[1739359929136,0.063,197.26,197.25,13.78831853]
[1739359929528,0.063,197.26,197.25,13.91380853]
[1739359933150,0.063,197.26,197.25,0.12549]
[1739359934934,0.063,197.26,197.25,0.25098]
[1739359935751,0.063,197.26,197.25,10.23142742]
[1739359936055,0.063,197.26,197.25,42.26634224]
[1739359936265,0.063,197.26,197.25,124.06634224]
[1739359936432,0.063,197.26,197.25,123.94847482]
[1739359937430,0.063,197.26,197.25,121.94847482]
[1739359937630,0.063,197.26,197.25,108.66597541]
[1739359938461,0.063,197.26,197.25,110.66597541]
[1739359938627,0.063,197.26,197.25,116.95212592]
[1739359940632,0.063,197.26,197.25,115.95212592]
[1739359940957,0.063,197.26,197.25,116.95212592]
[1739359943964,0.063,197.3,197.29,33.91380853]
[1739359946733,0.063,197.3,197.29,34.91380853]
[1739359947165,0.063,197.3,197.29,33.91380853]
[1739359947831,0.063,197.3,197.29,35.91380853]
[1739359949476,0.063,197.3,197.29,34.91380853]
[1739359949849,0.063,197.3,197.29,33.91380853]
[1739359950159,0.063,197.3,197.29,35.91380853]
[1739359950359,0.063,197.3,197.29,34.91380853]
[1739359951150,0.063,197.3,197.29,33.91380853]
[1739359955469,0.063,197.3,197.29,34.91380853]
[1739359955974,0.063,197.3,197.29,35.91380853]
[1739359956179,0.063,197.3,197.29,36.97780956]
[1739359957884,0.063,197.3,197.29,35.91380853]
[1739359960354,0.063,197.3,197.29,48.60447136]
[1739359963679,0.063,197.3,197.29,130.40447136]
[1739359963879,0.063,197.3,197.29,129.34052592]
[1739359964791,0.063,197.33,197.32,34.91380853]
[1739359967776,0.063,197.33,197.32,33.91380853]
[1739359969689,0.063,197.33,197.32,13.78831853]
[1739359970587,1.6557,197.33,197.26,0.03]
[1739359971271,1.6557,197.33,197.3,0.03]
[1739359975071,6.6547,197.32,197.3,0.03]
[1739359975277,88.8547,197.32,197.3,0.03]
[1739359976489,1.666,197.31,197.26,0.03]
[1739359977195,82.2,197.3,197.26,0.03]
[1739359981598,82.2,197.29,197.26,0.03]
[1739359981776,82.2,197.28,197.26,0.03]
[1739359982096,83.7027,197.27,197.26,0.03]
[1739359982400,1.5027,197.27,197.26,0.03]
[1739359991019,8.2136,197.32,197.26,0.03]
[1739359993699,1.5589,197.32,197.26,0.03]
[1739359999499,82.2,197.31,197.26,0.03]
[1739360002418,82.2,197.31,197.26,0.15549]
[1739360002619,82.2,197.31,197.27,0.25098]
[1739360002788,82.2,197.31,197.28,0.12549]
[1739360002989,0.063,197.33,197.28,0.12549]
[1739360003411,0.063,197.33,197.3,0.12549]
[1739360004917,0.063,197.33,197.32,0.12549]
[1739360019226,0.063,197.33,197.32,13.91380853]
[1739360021117,0.063,197.33,197.32,21.44190853]
[1739360022938,0.063,197.33,197.32,22.44190853]
[1739360024523,0.063,197.33,197.32,21.44190853]
[1739360027824,0.063,197.33,197.32,22.44190853]
[1739360028029,0.063,197.33,197.32,21.44190853]
[1739360029830,0.063,197.33,197.32,22.44190853]
[1739360030643,0.063,197.33,197.32,21.44190853]
[1739360030942,0.063,197.37,197.35,20.0]
[1739360031122,0.063,197.37,197.36,33.91380853]
[1739360033331,0.063,197.37,197.36,33.78831853]
[1739360033531,0.063,197.37,197.36,13.78831853]
[1739360039456,0.063,197.37,197.36,13.91380853]
[1739360040246,0.063,197.37,197.36,14.91380853]
[1739360040760,0.063,197.37,197.36,13.91380853]
[1739360041447,0.063,197.37,197.36,21.58309297]
[1739360042263,0.063,197.37,197.36,22.58309297]
[1739360042561,0.063,197.37,197.36,21.58309297]
[1739360042869,0.063,197.37,197.36,22.58309297]
[1739360044556,0.063,197.37,197.36,21.58309297]
[1739360044762,0.063,197.37,197.36,20.58309297]
[1739360044942,0.063,197.37,197.36,13.91380853]
[1739360046161,0.063,197.37,197.36,98.77751222]
[1739360046363,0.063,197.37,197.36,117.78371244]
[1739360046531,0.063,197.37,197.36,116.72000875]
[1739360047635,0.063,197.37,197.36,147.21000875]
[1739360051540,0.03,197.46,197.45,14.91380853]
[1739360056683,0.063,197.5,197.49,34.91380853]
[1739360056977,0.063,197.5,197.49,33.91380853]
[1739360057868,0.063,197.5,197.49,34.91380853]
[1739360060277,0.063,197.5,197.49,35.97673383]
[1739360060575,0.063,197.5,197.49,34.97673383]
[1739360060778,0.063,197.5,197.49,33.91380853]
[1739360061380,0.063,197.5,197.49,13.91380853]